fUST/lending_fUST_20240401
["ID","MTS","AMOUNT","RATE_DAILY","PERIOD"]
[321180390,1711948247192,-500.0,0.00077253,120]
[321180391,1711948247201,-509.91172716,0.00077253,120]
[321180392,1711948247210,-205.64894836,0.00077253,120]
[321180393,1711948247220,-508.15292329,0.00077253,120]
[321180394,1711948247230,-509.37880067,0.00077253,120]
[321180395,1711948247239,-505.21900292,0.00077253,120]
[321180396,1711948247251,-503.21001421,0.00077253,120]
[321180397,1711948247260,-156.02976845,0.00077253,120]
[321180398,1711948247271,-504.1058148,0.00077253,120]
[321180399,1711948247281,-500.0,0.00077253,120]
[321180400,1711948247291,-504.38612318,0.00077253,120]
[321180401,1711948247300,-505.2607648,0.00077253,120]
[321180402,1711948247310,-511.536118,0.00077253,120]
[321180403,1711948247320,-505.03846608,0.00077253,120]
[321180404,1711948247329,-507.08557404,0.00077253,120]
[321180405,1711948247339,-504.70047449,0.00077253,7]
[321180406,1711948247349,-405.32879854,0.00077253,120]
[321180407,1711948247358,-274.07771009,0.00077253,120]
[321180408,1711948247369,-507.58027087,0.00077253,120]
[321180409,1711948247378,-597.93304678,0.00077253,2]
[321180410,1711948247388,-507.24139669,0.00077253,120]
[321180411,1711948247397,-510.02834633,0.00077253,120]
[321180412,1711948247407,-500.0,0.00077253,120]
[321180413,1711948247421,-500.0,0.00077253,120]
[321180414,1711948247430,-500.0,0.00077253,120]
[321180415,1711948247441,-510.78656599,0.00077253,120]
[321180416,1711948247450,-504.13694559,0.00077253,120]
[321180417,1711948247459,-497.40825469,0.00077253,120]
[321180418,1711948247469,-1000.0,0.00077253,120]
[321180419,1711948247478,-511.45179558,0.00077254,120]
[321180420,1711948247487,-639.21304156,0.00077254,120]
[321180421,1711948247497,-508.02711345,0.00077254,120]
[321180422,1711948247507,-227.52543197,0.00077254,120]
[321180423,1711948247516,-509.99462093,0.00077254,120]
[321180424,1711948247526,-512.81563362,0.00077254,120]
[321180425,1711948247535,-500.0,0.00077254,120]
[321180426,1711948247545,-500.0,0.00077254,120]
[321180427,1711948247554,-500.0,0.00077254,120]
[321180428,1711948247563,-500.0,0.00077254,120]
[321180429,1711948247573,-500.0,0.00077254,120]
[321180430,1711948247582,-500.0,0.00077254,120]
[321180431,1711948247591,-507.04976193,0.00077254,120]
[321180432,1711948247600,-500.0,0.00077254,120]
[321180433,1711948247610,-500.0,0.00077254,120]
[321180434,1711948247618,-500.0,0.00077254,120]
[321180435,1711948247628,-374.69218421,0.00077256,120]
[321180436,1711948247637,-500.0,0.00077256,120]
[321180437,1711948247646,-500.0,0.00077256,120]
[321180438,1711948247655,-500.0,0.00077256,120]
[321180439,1711948247664,-500.0,0.00077256,120]
[321180440,1711948247673,-308.52230068,0.00077256,120]
[321180441,1711948247683,-500.0,0.00077257,120]
[321180442,1711948247693,-160.02682998,0.00077428,2]
[321180443,1711948247702,-153.0,0.00077465,60]
[321180444,1711948247711,-153.0,0.00077465,60]
[321180445,1711948247720,-153.0,0.00077465,60]
[321180446,1711948247729,-153.0,0.00077465,60]
[321180447,1711948247738,-500.0,0.00077526,120]
[321180448,1711948247747,-500.0,0.00077526,120]
[321180449,1711948247756,-500.0,0.00077526,120]
[321180450,1711948247765,-827.61,0.00077526,90]
[321180451,1711948247774,-500.0,0.00077526,21]
[321180452,1711948247784,-236.35835917,0.00077526,60]
[321180453,1711948247793,-500.0,0.00077526,120]
[321180454,1711948247802,-500.0,0.00077526,120]
[321180455,1711948247810,-3000.0,0.00077526,120]
[321180456,1711948247818,-500.0,0.00077526,120]
[321180457,1711948247827,-385.46083919,0.00077526,120]
[321180458,1711948247836,-229.94211008,0.00077526,120]
[321180459,1711948247845,-500.0,0.00077526,120]
[321180460,1711948247854,-500.0,0.00077526,120]
[321180461,1711948247862,-207.33684805,0.00077526,120]
[321180462,1711948247871,-506.1175307,0.00077526,120]
[321180463,1711948247881,-645.49450799,0.00077526,120]
[321180464,1711948247890,-500.0,0.00077526,120]
[321180465,1711948247898,-500.0,0.00077526,120]
[321180466,1711948247907,-500.0,0.00077526,120]
[321180467,1711948247916,-500.0,0.00077526,120]
[321180468,1711948247925,-509.27,0.00077526,120]
[321180469,1711948247935,-496.21029156,0.00077527,120]
[321180470,1711948248057,-3.78970844,0.00077527,120]
[321180471,1711948248066,-500.0,0.00077527,120]
[321180472,1711948248077,-500.0,0.00077527,120]
[321180473,1711948248089,-500.0,0.00077527,120]
[321180474,1711948248100,-500.0,0.00077527,120]
[321180475,1711948248111,-484.28786219,0.00077527,120]
[321180476,1711948248181,-30.72543304,0.00077527,120]
[321180477,1711948248193,-500.0,0.00077527,120]
[321180478,1711948248204,-500.0,0.00077527,120]
[321180479,1711948248214,-158.10153217,0.00077527,120]
[321180480,1711948248224,-500.0,0.00077528,120]
[321180481,1711948248235,-500.0,0.00077528,120]
[321180482,1711948248246,-500.0,0.00077528,120]
[321180483,1711948248257,-500.0,0.00077528,120]
[321180484,1711948248268,-500.0,0.00077528,120]
[321180485,1711948248280,-524.1724345,0.00077528,120]
[321180486,1711948248290,-500.56366332,0.00077528,120]
[321180487,1711948248301,-500.0,0.00077528,120]
[321180488,1711948248312,-500.0,0.0007753,120]
[321180489,1711948248322,-500.0,0.0007753,120]
[321180490,1711948248332,-182.16201001,0.0007753,120]
[321180491,1711948248342,-500.0,0.0007753,120]
[321180492,1711948248352,-500.0,0.000778,120]
[321180493,1711948248364,-500.0,0.000778,120]
[321180494,1711948248377,-500.0,0.000778,120]
[321180495,1711948248388,-827.61,0.000778,90]
[321180496,1711948248399,-500.0,0.000778,21]
[321180497,1711948248411,-500.0,0.000778,120]
[321180498,1711948248421,-500.0,0.000778,120]
[321180499,1711948248432,-2015.38961101,0.000778,120]
[321180500,1711948248446,-285.98500005,0.000778,120]
[321180501,1711948248486,163.040645,0.00033,4]
[321180505,1711948316113,306.11860958,0.00033,2]
[321180508,1711949205211,240.12376979,0.00041665,4]
[321180509,1711949226884,1452.94721261,0.00042287,10]
[321180510,1711949232111,-543.85156948,0.00044825,14]
[321180511,1711949232132,-107.21403943,0.00055554,4]
[321180512,1711949241094,-1599.76,0.00055553,4]
[321180513,1711949241114,-326.79094456,0.00055554,4]
[321180514,1711949241134,-5720.35079824,0.00055556,120]
[321180515,1711949273013,-28682.28418549,0.00055556,120]
[321180516,1711949387985,-719.98342272,0.00053455,4]
[321180517,1711949388010,-150.0,0.00053456,4]
[321180518,1711949394047,156.08773108,0.00019,2]
[321180547,1711949433206,-2410.61744276,0.00055555,2]
[321180548,1711949433217,-156.40300517,0.00055556,4]
[321180549,1711949433226,-310.5103362,0.00055556,2]
[321180550,1711949433235,-698.13743862,0.00055556,2]
[321180551,1711949433244,-2068.56632519,0.00055556,4]
[321180552,1711949433330,-2146.66738365,0.00055556,4]
[321180553,1711949433339,-154.84515485,0.00055556,4]
[321180554,1711949433349,-16.95573867,0.000719,2]
[321180555,1711949433360,-218.0726243,0.000719,2]
[321180556,1711949433369,-577.71680808,0.00072,40]
[321180557,1711949433379,-175.720594,0.00073757,2]
[321180558,1711949433388,-1277.19997362,0.00074523,2]
[321180559,1711949433401,-1583.98821148,0.00074523,2]
[321180560,1711949433587,313.68218326,0.00019,2]
[321180583,1711949440209,-1799.73,0.00071999,7]
[321180586,1711949440219,-8634.08000001,0.00074523,2]
[321180588,1711949440230,-2818.02,0.00074523,2]
[321180590,1711949440241,-8032.82180726,0.00074523,2]
[321180716,1711949444066,-2553.89000763,0.00074523,2]
[321180718,1711949444074,-188.022871,0.00074627,2]
[321180720,1711949444083,-169.816072,0.00075493,30]
[321180722,1711949444093,-2010.91594,0.0007653,120]
[321180724,1711949444102,-171.609529,0.00076613,2]
[321180726,1711949444111,-163.58638896,0.00076653,120]
[321180728,1711949444120,-214.45094336,0.00076711,120]
[321180730,1711949444129,-3000.0,0.00076712,120]
[321180732,1711949444138,-755.5246304,0.00076986,120]
[321180735,1711949444148,-381.76500217,0.00077315,7]
[321180737,1711949444157,-500.0,0.00077523,120]
[321180739,1711949444166,-404.38071165,0.00077523,120]
[321180741,1711949444175,-500.0,0.00077523,120]
[321180743,1711949444184,-500.0,0.00077524,120]
[321180745,1711949444193,-500.0,0.00077524,120]
[321180747,1711949444202,-500.0,0.00077524,120]
[321180748,1711949444211,-480.81973087,0.00077524,120]
[321180751,1711949444221,-500.0,0.00077524,120]
[321180753,1711949444231,-500.0,0.00077524,120]
[321180755,1711949444240,-500.0,0.00077524,120]
[321180756,1711949444249,-500.0,0.00077524,120]
[321180758,1711949444259,-500.0,0.00077524,120]
[321180760,1711949444268,-500.0,0.00077524,120]
[321180762,1711949444276,-500.0,0.00077524,120]
[321180764,1711949444285,-724.16,0.00077524,90]
[321180765,1711949444294,-500.0,0.00077524,60]
[321180767,1711949444304,-500.0,0.00077524,21]
[321180769,1711949444313,-500.0,0.00077524,120]
[321180771,1711949444321,-500.0,0.00077524,120]
[321180773,1711949444331,-670.05,0.00077524,120]
[321180775,1711949444340,-499.97056821,0.00077524,120]
[321180785,1711949444434,-500.0,0.00077524,120]
[321180787,1711949444448,-203.13388024,0.00077524,120]
[321180789,1711949444457,-153.0,0.00077739,60]
[321180791,1711949444467,-500.0,0.00077797,120]
[321180793,1711949444478,-500.0,0.00077797,120]
[321180795,1711949444487,-500.0,0.00077798,120]
[321180797,1711949444497,-500.0,0.00077798,120]
[321180799,1711949444506,-500.0,0.00077798,120]
[321180800,1711949444516,-568.0,0.00077798,120]
[321180802,1711949444525,-333.68121036,0.00077798,120]
[321180804,1711949444535,-500.0,0.00077798,120]
[321180806,1711949444544,-500.0,0.00077798,120]
[321180808,1711949444553,-500.0,0.00077798,120]
[321180810,1711949444561,-500.0,0.00077798,120]
[321180812,1711949444571,-500.0,0.00077798,120]
[321180814,1711949444582,-267.171952,0.00077798,10]
[321180816,1711949444591,-267.171952,0.00077798,10]
[321180817,1711949444600,-724.16,0.00077798,90]
[321180819,1711949444609,-500.0,0.00077798,120]
[321180821,1711949444618,-500.0,0.00077798,120]
[321180823,1711949444627,-670.05,0.00077798,120]
[321180825,1711949444637,-500.0,0.00077798,120]
[321180827,1711949444647,-545.85070882,0.00078071,120]
[321180829,1711949444656,-500.0,0.00078072,120]
[321180831,1711949444665,-500.0,0.00078072,120]
[321180833,1711949444675,-500.0,0.00078072,120]
[321180835,1711949444684,-500.0,0.00078072,120]
[321180837,1711949444693,-500.0,0.00078072,120]
[321180838,1711949444702,-500.0,0.00078072,120]
[321180840,1711949444714,-500.0,0.00078072,120]
[321180842,1711949444723,-267.171952,0.00078072,10]
[321180844,1711949444732,-267.171952,0.00078072,10]
[321180846,1711949444741,-724.16,0.00078072,90]
[321180848,1711949444752,-500.0,0.00078072,120]
[321180850,1711949444762,-670.05,0.00078072,120]
[321180852,1711949444771,-500.0,0.00078072,120]
[321180854,1711949444781,-1817.01917355,0.00078073,7]
[321180856,1711949444789,-151.0,0.00078073,120]
[321180857,1711949444798,-206.836092,0.00078073,120]
[321180859,1711949444807,-221.283829,0.00078073,120]
[321180861,1711949444817,-151.0,0.00078073,120]
[321180863,1711949444827,-151.0,0.00078073,120]
[321180865,1711949444836,-477.07241012,0.00078074,30]
[321180867,1711949444846,-500.0,0.00078075,120]
[321180869,1711949444855,-500.0,0.00078075,120]
[321180871,1711949444863,-500.0,0.00078075,120]
[321180873,1711949444873,-151.0,0.00078075,120]
[321180874,1711949444882,-500.0,0.00078075,120]
[321180876,1711949444891,-500.0,0.00078075,120]
[321180878,1711949444902,-500.0,0.00078075,120]
[321180880,1711949444911,-455.32574208,0.00078075,120]
[321180882,1711949444921,-500.0,0.00078075,120]
[321180884,1711949444930,-500.0,0.00078075,120]
[321180886,1711949444940,-1000.0,0.00078075,120]
[321180888,1711949444950,-151.0,0.00078075,120]
[321180890,1711949444959,-338.86983944,0.00078075,120]
[321180892,1711949444969,-500.0,0.00078075,120]
[321180893,1711949444981,-267.171952,0.00078075,10]
[321180895,1711949444990,-267.171952,0.00078075,10]
[321180897,1711949444999,-151.0,0.00078075,120]
[321180899,1711949445008,-244.48661389,0.00078075,120]
[321180901,1711949445017,-495.61312408,0.00078077,7]
[321180903,1711949445026,-234.56621,0.00078077,120]
[321180905,1711949445035,-500.0,0.00078346,120]
[321180907,1711949445044,-500.0,0.00078346,120]
[321180908,1711949445053,-500.0,0.00078346,120]
[321180910,1711949445063,-500.0,0.00078346,120]
[321180912,1711949445071,-500.0,0.00078346,120]
[321180914,1711949445080,-578.88764682,0.00078346,120]
[321180916,1711949445089,-267.171952,0.00078346,10]
[321180917,1711949445098,-267.171952,0.00078346,10]
[321180919,1711949445107,-724.16,0.00078346,90]
[321180921,1711949445116,-151.0,0.00078346,120]
[321180923,1711949445124,-576.09073032,0.00078346,120]
[321180925,1711949445133,-670.05,0.00078346,120]
[321180927,1711949445144,-151.0,0.00078346,120]
[321180929,1711949445153,-500.0,0.00078346,120]
[321180931,1711949445161,-151.0,0.00078346,120]
[321180933,1711949445171,-500.0,0.00078349,120]
[321180935,1711949445180,-500.0,0.00078349,120]
[321180937,1711949445188,-500.0,0.00078349,120]
[321180938,1711949445197,-500.0,0.00078349,120]
[321180940,1711949445206,-500.0,0.00078349,120]
[321180942,1711949445215,-500.0,0.00078349,120]
[321180944,1711949445227,-500.0,0.00078349,120]
[321180946,1711949445235,-500.0,0.00078349,120]
[321180948,1711949445244,-151.0,0.00078349,120]
[321180950,1711949445253,-413.36782195,0.00078349,120]
[321180952,1711949445261,-267.171952,0.00078349,10]
[321180954,1711949445270,-267.171952,0.00078349,10]
[321180956,1711949445279,-151.0,0.00078349,120]
[321180957,1711949445288,-151.0,0.00078349,120]
[321180959,1711949445296,-500.0,0.0007862,120]
[321180961,1711949445305,-500.0,0.0007862,120]
[321180963,1711949445314,-500.0,0.0007862,120]
[321180965,1711949445323,-500.0,0.0007862,120]
[321180967,1711949445331,-500.0,0.0007862,120]
[321180969,1711949445340,-724.16,0.0007862,90]
[321180971,1711949445350,-151.0,0.0007862,120]
[321180973,1711949445359,-670.05,0.0007862,120]
[321180975,1711949445368,-500.0,0.0007862,120]
[321180977,1711949445377,-500.0,0.00078623,120]
[321180978,1711949445386,-500.0,0.00078623,120]
[321180980,1711949445395,-500.0,0.00078623,120]
[321180982,1711949445404,-500.0,0.00078623,120]
[321180984,1711949445413,-500.0,0.00078623,120]
[321180986,1711949445423,-212.12482463,0.00078623,120]
[321180988,1711949445432,-500.0,0.00078623,120]
[321180990,1711949445441,-151.0,0.00078623,120]
[321180992,1711949445450,-267.171952,0.00078623,10]
[321180994,1711949445459,-267.171952,0.00078623,10]
[321180996,1711949445468,-324.5838289,0.00078635,60]
[321180998,1711949445479,-150.05,0.00078635,120]
[321181000,1711949445488,-175.720594,0.00078784,2]
[321181002,1711949445497,-151.0,0.00078799,120]
[321181004,1711949445507,-191.867503,0.00078799,120]
[321181006,1711949445516,-500.0,0.00078894,120]
[321181007,1711949445525,-500.0,0.00078894,120]
[321181009,1711949445534,-151.0,0.00078894,120]
[321181011,1711949445543,-500.0,0.00078894,120]
[321181013,1711949445551,-500.0,0.00078894,120]
[321181015,1711949445561,-500.0,0.00078894,120]
[321181017,1711949445570,-724.16,0.00078894,90]
[321181019,1711949445579,-151.0,0.00078894,120]
[321181021,1711949445588,-670.05,0.00078894,120]
[321181023,1711949445597,-500.0,0.00078894,120]
[321181024,1711949445607,-579.76191252,0.00078897,120]
[321181026,1711949445617,-500.0,0.00078897,120]
[321181028,1711949445626,-500.0,0.00078897,120]
[321181030,1711949445636,-500.0,0.00078897,120]
[321181032,1711949445645,-500.0,0.00078897,120]
[321181034,1711949445655,-593.35285033,0.00078897,120]
[321181036,1711949445664,-267.171952,0.00078897,10]
[321181038,1711949445673,-267.171952,0.00078897,10]
[321181040,1711949445682,-236.2802,0.00079158,2]
[321181042,1711949445692,-500.0,0.00079168,120]
[321181044,1711949445701,-215.78078914,0.00079168,120]
[321181046,1711949445714,-151.0,0.00079168,120]
[321181047,1711949445724,-500.0,0.00079168,120]
[321181049,1711949445733,-500.0,0.00079168,120]
[321181051,1711949445743,-500.0,0.00079168,120]
[321181053,1711949445752,-724.16,0.00079168,90]
[321181055,1711949445761,-670.05,0.00079168,120]
[321181057,1711949445770,-151.0,0.00079168,120]
[321181059,1711949445780,-500.0,0.00079168,120]
[321181061,1711949445789,-508.62386292,0.00079171,120]
[321181063,1711949445799,-500.0,0.00079171,120]
[321181065,1711949445808,-500.0,0.00079171,120]
[321181067,1711949445816,-500.0,0.00079171,120]
[321181068,1711949445825,-151.0,0.00079171,120]
[321181070,1711949445834,-267.171952,0.00079183,10]
[321181072,1711949445843,-267.171952,0.00079183,10]
[321181074,1711949445852,-151.37776967,0.00079442,120]
[321181076,1711949445861,-500.0,0.00079442,120]
[321181078,1711949445870,-500.0,0.00079442,120]
[321181080,1711949445879,-500.0,0.00079442,120]
[321181082,1711949445888,-724.16,0.00079442,90]
[321181084,1711949445897,-670.05,0.00079442,120]
[321181086,1711949445907,-500.0,0.00079442,120]
[321181088,1711949445916,-151.0,0.00079443,120]
[321181089,1711949445926,-266.13213166,0.00079444,7]
[321181091,1711949445936,-500.0,0.00079445,120]
[321181093,1711949445946,-500.0,0.00079445,120]
[321181095,1711949445955,-500.0,0.00079445,120]
[321181097,1711949445964,-151.0,0.00079445,120]
[321181099,1711949445974,-258.3739879,0.00079467,7]
[321181101,1711949445983,-586.84740499,0.00079468,7]
[321181103,1711949445992,-283.17136253,0.00079468,7]
[321181105,1711949446001,-155.50705614,0.0007949,2]
[321181107,1711949446010,-748.50023943,0.00079491,120]
[321181110,1711949446019,-532.719999,0.000796,120]
[321181112,1711949446027,-150.5701,0.000796,2]
[321181115,1711949446037,-292.20478428,0.00079619,2]
[321181118,1711949446046,-189.126983,0.00079619,120]
[321181121,1711949446055,-809.98135055,0.00079632,7]
[321181124,1711949446064,-2555.84060951,0.00079633,7]
[321181126,1711949446073,-151.0,0.00079633,120]
[321181128,1711949446083,-267.171952,0.00079633,10]
[321181130,1711949446093,-267.171952,0.00079633,10]
[321181132,1711949446103,-500.0,0.00079716,120]
[321181134,1711949446112,-500.0,0.00079716,120]
[321181136,1711949446121,-500.0,0.00079716,120]
[321181138,1711949446133,-724.16,0.00079716,90]
[321181140,1711949446142,-670.05,0.00079716,120]
[321181142,1711949446152,-500.0,0.00079716,120]
[321181144,1711949446161,-151.0,0.00079717,120]
[321181145,1711949446171,-500.0,0.00079719,120]
[321181147,1711949446181,-500.0,0.00079719,120]
[321181148,1711949446189,-500.0,0.00079719,120]
[321181150,1711949446198,-151.0,0.00079719,120]
[321181152,1711949446207,-310.8389565,0.00079836,60]
[321181154,1711949446217,-200.707112,0.00079888,120]
[321181156,1711949446228,-159.788142,0.00079888,120]
[321181157,1711949446237,-267.171952,0.00079895,10]
[321181158,1711949446246,-267.171943,0.00079895,10]
[321181159,1711949446255,-500.0,0.000799,120]
[321181160,1711949446264,-1000.0,0.00079987,7]
[321181161,1711949446273,-500.0,0.0007999,120]
[321181162,1711949446284,-500.0,0.0007999,120]
[321181163,1711949446293,-500.0,0.0007999,120]
[321181164,1711949446303,-724.16,0.0007999,90]
[321181165,1711949446311,-670.05,0.0007999,120]
[321181166,1711949446319,-500.0,0.0007999,120]
[321181167,1711949446328,-500.0,0.00079993,120]
[321181168,1711949446337,-500.0,0.00079993,120]
[321181169,1711949446346,-500.0,0.00079993,120]
[321181170,1711949446355,-151.0,0.00079993,120]
[321181172,1711949446364,-151.0,0.00079994,120]
[321181174,1711949446373,-1415.21786733,0.00079998,61]
[321181176,1711949446383,-187761.5019,0.00079998,30]
[321181178,1711949446393,-151.0,0.00079998,120]
[321181180,1711949446402,-565.40066628,0.0008,30]
[321181182,1711949446411,-300.0,0.0008,105]
[321181184,1711949446421,-500.0,0.00080264,120]
[321181186,1711949446430,-500.0,0.00080264,120]
[321181188,1711949446439,-500.0,0.00080264,120]
[321181190,1711949446448,-724.16,0.00080264,90]
[321181192,1711949446457,-670.05,0.00080264,120]
[321181194,1711949446466,-500.0,0.00080264,120]
[321181196,1711949446478,-500.0,0.00080267,120]
[321181198,1711949446486,-500.0,0.00080267,120]
[321181200,1711949446495,-500.0,0.00080267,120]
[321181202,1711949446504,-500.0,0.00080538,120]
[321181204,1711949446513,-305.28555934,0.00080538,120]
[321181206,1711949446523,-617.72919563,0.00080538,120]
[321181208,1711949446531,-724.16,0.00080538,90]
[321181210,1711949446540,-670.05,0.00080538,120]
[321181212,1711949446549,-481.35409739,0.00080538,120]
[321181214,1711949446558,-500.0,0.00080541,120]
[321181216,1711949446567,-506.58862269,0.00080541,120]
[321181218,1711949446576,-500.0,0.00080541,120]
[321181220,1711949446585,-500.0,0.00080812,120]
[321181222,1711949446595,-724.16,0.00080812,90]
[321181224,1711949446603,-670.05,0.00080812,120]
[321181226,1711949446612,-151.0,0.00080812,120]
[321181228,1711949446621,-500.0,0.00080815,120]
[321181230,1711949446630,-500.0,0.00080815,120]
[321181232,1711949446639,-500.0,0.00081086,120]
[321181234,1711949446648,-724.16,0.00081086,90]
[321181236,1711949446657,-670.05,0.00081086,120]
[321181238,1711949446666,-500.0,0.00081089,120]
[321181239,1711949446675,-225.56517564,0.00081089,120]
[321181242,1711949446756,-500.0,0.0008136,120]
[321181243,1711949446765,-724.16,0.0008136,90]
[321181244,1711949446774,-670.05,0.0008136,120]
[321181245,1711949446784,-500.0,0.00081363,120]
[321181247,1711949446793,-300.0,0.000815,106]
[321181248,1711949446802,-500.0,0.00081634,120]
[321181250,1711949446811,-724.16,0.00081634,90]
[321181252,1711949446820,-670.05,0.00081634,120]
[321181253,1711949446831,-500.0,0.00081637,120]
[321181255,1711949446840,-500.0,0.00081908,120]
[321181257,1711949446850,-724.16,0.00081908,90]
[321181259,1711949446859,-670.05,0.00081908,120]
[321181260,1711949446870,-500.0,0.00081911,120]
[321181261,1711949446879,-1238.37848117,0.00082,5]
[321181262,1711949446890,-156.91481725,0.00082178,7]
[321181263,1711949446900,-203.42024939,0.00082181,3]
[321181264,1711949446909,-500.0,0.00082182,120]
[321181265,1711949446918,-724.16,0.00082182,90]
[321181266,1711949446927,-670.05,0.00082182,120]
[321181267,1711949446936,-500.0,0.00082185,120]
[321181268,1711949446946,-154.84515485,0.00082253,2]
[321181269,1711949446955,-500.0,0.00082456,120]
[321181270,1711949446964,-724.16,0.00082456,90]
[321181271,1711949446974,-670.05,0.00082456,120]
[321181272,1711949446983,-500.0,0.00082459,120]
[321181273,1711949446991,-757.46582326,0.00082464,7]
[321181274,1711949447000,-340.25215207,0.00082691,120]
[321181275,1711949447010,-340.25215207,0.00082699,120]
[321181276,1711949447019,-5851.98524047,0.00082723,120]
[321181277,1711949447028,-25712.76586337,0.00082723,120]
[321181278,1711949447039,-25712.76586337,0.00082725,120]
[321181279,1711949447048,-500.0,0.0008273,120]
[321181280,1711949447058,-724.16,0.0008273,90]
[321181281,1711949447067,-670.05,0.0008273,120]
[321181282,1711949447077,-582.12804683,0.00082733,120]
[321181283,1711949447087,-340.25215207,0.0008274,120]
[321181284,1711949447097,-340.25215207,0.00082747,120]
[321181285,1711949447106,-25712.76586337,0.00082755,120]
[321181286,1711949447116,-25712.76586337,0.00082757,120]
[321181287,1711949447125,-7931.97526282,0.00082797,7]
[321181288,1711949447133,-216.88773324,0.00082797,7]
[321181289,1711949447142,-7150.47789051,0.00082798,120]
[321181290,1711949447151,-188.11014545,0.00082798,7]
[321181291,1711949447160,-290.24935895,0.00082798,2]
[321181292,1711949447170,-346.87822601,0.00082799,7]
[321181293,1711949447179,-76925.07291965,0.000828,120]
[321181294,1711949447188,-5851.98524047,0.00082806,120]
[321181295,1711949447197,-25712.76586337,0.00082829,120]
[321181296,1711949447207,-340.25215207,0.00082835,120]
[321181297,1711949447216,-340.25215207,0.00082862,120]
[321181298,1711949447226,-5851.98524047,0.00082879,120]
[321181299,1711949447235,-25712.76586337,0.00082882,120]
[321181300,1711949447245,-340.25215207,0.00082893,120]
[321181301,1711949447254,-500.0,0.000829,120]
[321181302,1711949447263,-2501.03989174,0.000829,120]
[321181303,1711949447273,-5851.98524047,0.000829,120]
[321181304,1711949447282,-25712.76586337,0.00082958,120]
[321181305,1711949447291,-5851.98524047,0.00082961,120]
[321181306,1711949447300,-1382.51250822,0.00082989,104]
[321181307,1711949447309,-500.0,0.00083,120]
[321181308,1711949447318,-1000.0,0.00083,5]
[321181309,1711949447328,-308.50844905,0.00083,107]
[321181310,1711949447337,-500.0,0.00083004,120]
[321181311,1711949447346,-724.16,0.00083004,90]
[321181312,1711949447355,-670.05,0.00083004,120]
[321181313,1711949447364,-1500.0,0.000831,120]
[321181314,1711949447373,-500.0,0.000831,120]
[321181315,1711949447382,-276.0,0.000831,120]
[321181316,1711949447391,-114598.19833926,0.000831,10]
[321181317,1711949447547,154.84515485,0.00019,2]
[321181318,1711949454086,313.68218326,0.00019,2]
[321181319,1711949468225,154.84515485,0.00019,2]
[321181320,1711949469592,313.68218326,0.00019,2]
[321181321,1711949486217,203.96455646,0.00019,2]
[321181322,1711949489587,314.48861251,0.00019,2]
[321181324,1711950439155,-1799.73,0.00067824,7]
[321181325,1711950439178,-809.98135055,0.00067825,7]
[321181326,1711950439199,-1927.34198006,0.00067828,120]
[321181327,1711950439220,-151.0,0.0007,120]
[321181328,1711950439241,-2000.0,0.00073065,120]
[321181329,1711950439262,-824.3550232,0.00073677,2]
[321181330,1711950439284,-169.684643,0.0007437,2]
[321181331,1711950439309,-390.04335282,0.00075298,2]
[321181332,1711950447207,-495.61312408,0.00075298,2]
[321181397,1711950632282,-1350.74894182,0.00071998,7]